fUST/lending_fUST_20250914
["ID","MTS","AMOUNT","RATE_DAILY","PERIOD"]
[385375349,1757797855579,-535.64,0.00025479,3]
[385375350,1757797855587,-513.58,0.00025479,3]
[385375351,1757797855597,-1162.21,0.00025479,3]
[385375352,1757797855606,-2915.89,0.00025479,3]
[385375353,1757797855616,-480.0,0.00025479,3]
[385375354,1757797855625,-151.0,0.00025479,7]
[385375355,1757797855634,-187.1,0.00025479,3]
[385375356,1757797855643,-151.0,0.00025479,7]
[385375357,1757797855652,-608.64715097,0.00025479,3]
[385375358,1757797855662,-151.0,0.00025479,7]
[385375359,1757797855671,-756.98,0.00025479,3]
[385375360,1757797855679,-151.0,0.00025479,7]
[385375361,1757797855689,-152.6708,0.00025479,7]
[385375362,1757797855698,-1032.73,0.00025479,3]
[385375363,1757797855707,-480.0,0.00025479,3]
[385375364,1757797855716,-480.0,0.00025479,3]
[385375365,1757797855728,-480.0,0.00025479,3]
[385375366,1757797855738,-614.43,0.00025479,3]
[385375367,1757797855747,-480.0,0.00025479,3]
[385375368,1757797855756,-480.0,0.00025479,3]
[385375369,1757797855765,-480.0,0.00025479,3]
[385375370,1757797855774,-480.0,0.00025479,3]
[385375371,1757797855783,-480.0,0.00025479,3]
[385375372,1757797855791,-1595.41,0.00025479,3]
[385375373,1757797855800,-480.0,0.00025479,3]
[385375374,1757797855809,-151.0,0.00025479,7]
[385375375,1757797855818,-949.66,0.00025479,3]
[385375376,1757797855828,-480.0,0.00025479,3]
[385375377,1757797855839,-480.0,0.00025479,3]
[385375378,1757797855848,-480.0,0.00025479,3]
[385375379,1757797855857,-480.0,0.00025479,3]
[385375380,1757797855867,-480.0,0.00025479,3]
[385375381,1757797855876,-480.0,0.00025479,3]
[385375382,1757797855885,-480.0,0.00025479,3]
[385375383,1757797855895,-480.0,0.00025479,3]
[385375384,1757797855904,-480.0,0.00025479,3]
[385375385,1757797855913,-561.34,0.00025479,3]
[385375386,1757797855923,-279.17,0.00025479,3]
[385375387,1757797855932,-1111.44,0.00025479,3]
[385375388,1757797855941,-480.0,0.00025479,3]
[385375389,1757797855950,-480.0,0.00025479,3]
[385375390,1757797855960,-480.0,0.00025479,3]
[385375391,1757797855969,-480.0,0.00025479,3]
[385375392,1757797855978,-500.0,0.00025479,2]
[385375393,1757797855987,-1208.29,0.00025479,3]
[385375394,1757797855996,-580.83,0.00025479,3]
[385375395,1757797856006,-480.0,0.00025479,3]
[385375396,1757797856015,-663.09,0.00025479,3]
[385375397,1757797856024,-488.61,0.00025479,3]
[385375398,1757797856033,-1298.16,0.00025479,3]
[385375399,1757797856042,-480.0,0.00025479,3]
[385375400,1757797856052,-480.0,0.00025479,3]
[385375401,1757797856061,-546.16,0.00025479,3]
[385375402,1757797856070,-480.0,0.00025479,3]
[385375403,1757797856079,-3822.56,0.00025479,3]
[385375404,1757797856088,-480.0,0.00025479,3]
[385375405,1757797856098,-480.0,0.00025479,3]
[385375406,1757797856107,-480.0,0.00025479,3]
[385375407,1757797856116,-480.0,0.00025479,3]
[385375408,1757797856124,-544.9,0.00025479,3]
[385375409,1757797856134,-4731.51,0.00025479,3]
[385375410,1757797856142,-313.70585856,0.00025479,3]
[385375411,1757797856152,-480.0,0.00025479,3]
[385375412,1757797856161,-528.34,0.00025479,3]
[385375413,1757797856170,-769.92,0.00025479,3]
[385375414,1757797856179,-480.0,0.00025479,3]
[385375415,1757797856187,-5408.73,0.00025479,3]
[385375416,1757797856197,-820.76,0.00025479,3]
[385375417,1757797856207,-1069.75,0.00025479,3]
[385375418,1757797856218,-480.0,0.00025479,3]
[385375419,1757797856228,-539.7,0.00025479,3]
[385375420,1757797856239,-1530.54,0.00025479,3]
[385375421,1757797856251,-809.45,0.00025479,3]
[385375422,1757797856260,-2741.13,0.00025479,3]
[385375423,1757797856280,-480.0,0.00025479,3]
[385375424,1757797856290,-1053.88,0.00025479,3]
[385375425,1757797856301,-530.53700526,0.00025479,3]
[385375426,1757797856310,-705.89,0.00025479,3]
[385375427,1757797856319,-480.0,0.00025479,3]
[385375428,1757797856328,-480.0,0.00025479,3]
[385375429,1757797856337,-480.0,0.00025479,3]
[385375430,1757797856346,-487.91,0.00025479,3]
[385375431,1757797856355,-1792.23,0.00025479,3]
[385375432,1757797856365,-1076.17,0.00025479,3]
[385375433,1757797856374,-480.0,0.00025479,3]
[385375434,1757797856383,-702.49,0.00025479,3]
[385375435,1757797856393,-677.57,0.00025479,3]
[385375436,1757797856402,-480.0,0.00025479,3]
[385375437,1757797856412,-716.49,0.00025479,3]
[385375438,1757797856421,-1758.73,0.00025479,3]
[385375439,1757797856430,-715.05,0.00025479,3]
[385375440,1757797856439,-480.0,0.00025479,3]
[385375441,1757797856448,-1041.19,0.00025479,3]
[385375442,1757797856458,-3039.23,0.00025479,3]
[385375443,1757797856467,-18172.37,0.00025479,3]
[385375444,1757797856476,-244.29841196,0.00025479,3]
[385375445,1757797856485,-480.0,0.00025479,3]
[385375446,1757797856494,-1407.05,0.00025479,3]
[385375447,1757797856504,-480.0,0.00025479,3]
[385375448,1757797856514,-480.0,0.00025479,3]
[385375449,1757797856523,-770.53,0.00025479,3]
[385375450,1757797856532,-480.0,0.00025479,3]
[385375451,1757797856541,-3266.41,0.00025479,3]
[385375452,1757797856645,-480.0,0.00025479,3]
[385375453,1757797856655,-570.8,0.00025479,3]
[385375454,1757797856664,-1148.94,0.00025479,3]
[385375455,1757797856673,-480.0,0.00025479,3]
[385375456,1757797856682,-628.62,0.00025479,3]
[385375457,1757797856691,-2158.32,0.00025479,3]
[385375458,1757797856701,-1077.2,0.00025479,3]
[385375459,1757797856711,-620.58,0.00025479,3]
[385375460,1757797856721,-1551.49,0.00025479,3]
[385375461,1757797856730,-612.64,0.00025479,3]
[385375462,1757797856739,-1090.5,0.00025479,3]
[385375463,1757797856749,-480.0,0.00025479,3]
[385375464,1757797856758,-5972.34,0.00025479,3]
[385375465,1757797856768,-480.0,0.00025479,3]
[385375466,1757797856777,-1242.41,0.00025479,3]
[385375467,1757797856786,-3138.73,0.00025479,3]
[385375468,1757797856795,-1388.15,0.00025479,3]
[385375469,1757797856805,-2041.77,0.00025479,3]
[385375470,1757797856814,-1724.09,0.00025479,3]
[385375471,1757797856824,-587.3,0.00025479,3]
[385375472,1757797856836,-480.0,0.00025479,3]
[385375473,1757797856846,-480.0,0.00025479,3]
[385375474,1757797856855,-1040.4,0.00025479,3]
[385375475,1757797856864,-979.92,0.00025479,3]
[385375476,1757797856874,-4373.74,0.00025479,3]
[385375477,1757797856884,-480.0,0.00025479,3]
[385375478,1757797856894,-4160.03,0.00025479,3]
[385375479,1757797856904,-225.78931249,0.00025479,3]
[385375480,1757797856914,-500.0,0.00025479,3]
[385375481,1757797856925,-762.75,0.00025479,3]
[385375482,1757797856934,-157.0,0.00025479,3]
[385375483,1757797856944,-36127.25,0.00025479,3]
[385375484,1757797856953,-480.0,0.00025479,3]
[385375485,1757797856962,-480.0,0.00025479,3]
[385375486,1757797856971,-480.0,0.00025479,3]
[385375487,1757797856980,-480.0,0.00025479,3]
[385375488,1757797856990,-480.0,0.00025479,3]
[385375489,1757797857000,-480.0,0.00025479,3]
[385375490,1757797857009,-1910.85,0.00025479,3]
[385375491,1757797857018,-1401.88,0.00025479,3]
[385375492,1757797857027,-692.19,0.00025479,3]
[385375493,1757797857036,-1936.75,0.00025479,3]
[385375494,1757797857045,-1316.22,0.00025479,3]
[385375495,1757797857059,-1934.0,0.00025479,3]
[385375496,1757797857068,-480.0,0.00025479,3]
[385375497,1757797857078,-722.51,0.00025479,3]
[385375498,1757797857088,-480.0,0.00025479,3]
[385375499,1757797857097,-3777.73,0.00025479,3]
[385375500,1757797857107,-8117.93,0.00025479,3]
[385375501,1757797857117,-480.0,0.00025479,3]
[385375502,1757797857127,-3222.89,0.00025479,3]
[385375503,1757797857137,-6888.82,0.00025479,3]
[385375504,1757797857146,-480.0,0.00025479,3]
[385375505,1757797857156,-480.0,0.00025479,3]
[385375506,1757797857166,-4598.85,0.00025479,3]
[385375507,1757797857176,-8378.03,0.00025479,3]
[385375508,1757797857185,-681.39,0.00025479,3]
[385375509,1757797857194,-552.83,0.00025479,3]
[385375510,1757797857204,-1901.54,0.00025479,3]
[385375511,1757797857214,-730.27,0.00025479,3]
[385375512,1757797857223,-947.38,0.00025479,3]
[385375513,1757797857233,-776.0,0.00025479,3]
[385375514,1757797857243,-624.9,0.00025479,3]
[385375515,1757797857253,-480.0,0.00025479,3]
[385375516,1757797857262,-480.0,0.00025479,3]
[385375517,1757797857272,-480.0,0.00025479,3]
[385375518,1757797857282,-500.0,0.00025479,3]
[385375519,1757797857294,-522.77,0.00025479,3]
[385375520,1757797857307,-480.0,0.00025479,3]
[385375521,1757797857316,-630.5,0.00025479,3]
[385375522,1757797857325,-480.0,0.00025479,3]
[385375523,1757797857335,-654.54,0.00025479,3]
[385375524,1757797857345,-480.0,0.00025479,3]
[385375525,1757797857355,-480.0,0.00025479,3]
[385375526,1757797857365,-592.21,0.00025479,3]
[385375527,1757797857375,-480.0,0.00025479,3]
[385375528,1757797857384,-569.42,0.00025479,3]
[385375529,1757797857394,-535.65,0.00025479,3]
[385375530,1757797857403,-1562.3,0.00025479,3]
[385375531,1757797857414,-533.9,0.00025479,3]
[385375532,1757797857423,-1236.42,0.000255,7]
[385375533,1757797857433,-250.0,0.000255,7]
[385375534,1757797857443,-250.0,0.000255,7]
[385375535,1757797857453,-250.0,0.000255,7]
[385375536,1757797857464,-250.0,0.000255,7]
[385375537,1757797857474,-256.6,0.000255,7]
[385375538,1757797857483,-984.23,0.000255,7]
[385375539,1757797857492,-2000.0,0.00025516,2]
[385375540,1757797857501,-2000.0,0.00025516,2]
[385375541,1757797857511,-2000.0,0.00025516,2]
[385375542,1757797857520,-2000.0,0.00025516,2]
[385375543,1757797857530,-2000.0,0.00025516,2]
[385375544,1757797857540,-178.03080736,0.00025516,2]
[385375545,1757797857550,-2000.0,0.00025516,2]
[385375546,1757797857559,-2000.0,0.00025516,2]
[385375547,1757797857569,-2000.0,0.00025516,2]
[385375548,1757797857579,-2000.0,0.00025516,2]
[385375549,1757797857589,-151.07369853,0.00025516,2]
[385375550,1757797857601,-300.0,0.00025521,2]
[385375551,1757797857610,-168.0,0.00025546,2]
[385375552,1757797857619,-308.0,0.00025608,2]
[385375553,1757797857629,-5609.68665427,0.0002563,2]
[385375554,1757797857639,-308.0,0.00025637,2]
[385375555,1757797857651,-308.0,0.00025678,2]
[385375556,1757797857664,-152.250623,0.00025741,20]
[385375557,1757797857674,-500.0,0.00025753,3]
[385375558,1757797857683,-170.55115796,0.00025753,3]
[385375559,1757797857693,-500.0,0.00025753,3]
[385375560,1757797857702,-500.0,0.00025753,2]
[385375561,1757797857712,-500.0,0.00025753,3]
[385375562,1757797857722,-776.0,0.00025753,3]
[385375563,1757797857731,-500.0,0.00025753,3]
[385375564,1757797857740,-480.0,0.00025753,3]
[385375565,1757797857749,-600.22,0.00025753,3]
[385375566,1757797857759,-480.0,0.00025753,3]
[385375567,1757797857768,-480.0,0.00025753,3]
[385375568,1757797857778,-643.07,0.00025753,3]
[385375569,1757797857788,-480.0,0.00025753,3]
[385375570,1757797857798,-480.0,0.00025753,3]
[385375571,1757797857808,-200.0,0.00025753,3]
[385375572,1757797857818,-936.38,0.00025753,3]
[385375573,1757797857828,-739.4,0.00025753,3]
[385375574,1757797857837,-480.0,0.00025753,3]
[385375575,1757797857847,-480.0,0.00025753,3]
[385375576,1757797857857,-495.99,0.00025753,3]
[385375577,1757797857867,-480.0,0.00025753,3]
[385375578,1757797857876,-480.0,0.00025753,3]
[385375579,1757797857886,-480.0,0.00025753,3]
[385375580,1757797857895,-480.0,0.00025753,3]
[385375581,1757797857904,-480.0,0.00025753,3]
[385375582,1757797857914,-494.7,0.00025753,3]
[385375583,1757797857924,-480.0,0.00025753,3]
[385375584,1757797857934,-480.0,0.00025753,3]
[385375585,1757797857943,-480.0,0.00025753,3]
[385375586,1757797857955,-859.09,0.00025753,3]
[385375587,1757797857964,-480.0,0.00025753,3]
[385375588,1757797857975,-480.0,0.00025753,3]
[385375589,1757797857985,-1983.02,0.00025753,3]
[385375590,1757797857994,-480.0,0.00025753,3]
[385375591,1757797858004,-480.0,0.00025753,3]
[385375592,1757797858013,-1141.93,0.00025753,3]
[385375593,1757797858023,-480.0,0.00025753,3]
[385375594,1757797858032,-480.0,0.00025753,3]
[385375595,1757797858042,-541.58,0.00025753,3]
[385375596,1757797858051,-1119.58,0.00025753,3]
[385375597,1757797858060,-480.0,0.00025753,3]
[385375598,1757797858070,-446.42694732,0.00025753,3]
[385375599,1757797858080,-480.0,0.00025753,3]
[385375600,1757797858089,-480.0,0.00025753,3]
[385375601,1757797858099,-480.0,0.00025753,3]
[385375602,1757797858108,-480.0,0.00025753,3]
[385375603,1757797858117,-480.0,0.00025753,3]
[385375604,1757797858126,-966.29,0.00025753,3]
[385375605,1757797858135,-480.0,0.00025753,3]
[385375606,1757797858145,-480.0,0.00025753,3]
[385375607,1757797858154,-733.6,0.00025753,3]
[385375608,1757797858163,-480.0,0.00025753,3]
[385375609,1757797858173,-1314.1,0.00025753,3]
[385375610,1757797858182,-480.0,0.00025753,3]
[385375611,1757797858191,-1853.85,0.00025753,3]
[385375612,1757797858202,-1543.61,0.00025753,3]
[385375613,1757797858213,-584.83,0.00025753,3]
[385375614,1757797858223,-730.11,0.00025753,3]
[385375615,1757797858233,-480.0,0.00025753,3]
[385375616,1757797858243,-521.39,0.00025753,3]
[385375617,1757797858252,-975.02,0.00025753,3]
[385375618,1757797858261,-480.0,0.00025753,3]
[385375619,1757797858269,-480.0,0.00025753,3]
[385375620,1757797858277,-480.0,0.00025753,3]
[385375621,1757797858287,-480.0,0.00025753,3]
[385375622,1757797858297,-1159.17,0.00025753,3]
[385375623,1757797858306,-480.0,0.00025753,3]
[385375624,1757797858315,-593.42,0.00025753,3]
[385375625,1757797858324,-499.17,0.00025753,3]
[385375626,1757797858334,-480.0,0.00025753,3]
[385375627,1757797858442,-480.0,0.00025753,3]
[385375628,1757797858452,-480.0,0.00025753,3]
[385375629,1757797858463,-480.0,0.00025753,3]
[385375630,1757797858471,-709.35,0.00025753,3]
[385375631,1757797858480,-480.0,0.00025753,3]
[385375632,1757797858487,-480.0,0.00025753,3]
[385375633,1757797858496,-480.0,0.00025753,3]
[385375634,1757797858504,-499.03,0.00025753,3]
[385375635,1757797858512,-535.64,0.00025753,3]
[385375636,1757797858521,-513.58,0.00025753,3]
[385375637,1757797858530,-1162.21,0.00025753,3]
[385375638,1757797858539,-2915.89,0.00025753,3]
[385375639,1757797858549,-480.0,0.00025753,3]
[385375640,1757797858558,-756.98,0.00025753,3]
[385375641,1757797858567,-1032.73,0.00025753,3]
[385375642,1757797858577,-443.51464812,0.00025753,3]
[385375643,1757797858588,-480.0,0.00025753,3]
[385375644,1757797858599,-480.0,0.00025753,3]
[385375645,1757797858607,-614.43,0.00025753,3]
[385375646,1757797858615,-480.0,0.00025753,3]
[385375647,1757797858623,-480.0,0.00025753,3]
[385375648,1757797858634,-480.0,0.00025753,3]
[385375649,1757797858644,-480.0,0.00025753,3]
[385375650,1757797858653,-480.0,0.00025753,3]
[385375651,1757797858664,-1595.41,0.00025753,3]
[385375652,1757797858673,-480.0,0.00025753,3]
[385375653,1757797858682,-949.66,0.00025753,3]
[385375654,1757797858693,-480.0,0.00025753,3]
[385375655,1757797858706,-480.0,0.00025753,3]
[385375656,1757797858717,-480.0,0.00025753,3]
[385375657,1757797858730,-480.0,0.00025753,3]
[385375658,1757797858740,-480.0,0.00025753,3]
[385375659,1757797858749,-480.0,0.00025753,3]
[385375660,1757797858758,-300.72910628,0.00025753,3]
[385375661,1757797858767,-480.0,0.00025753,3]
[385375662,1757797858777,-369.45458263,0.00025753,3]
[385375663,1757797858787,-561.34,0.00025753,3]
[385375664,1757797858798,-1111.44,0.00025753,3]
[385375665,1757797858807,-480.0,0.00025753,3]
[385375666,1757797858817,-480.0,0.00025753,3]
[385375667,1757797858826,-480.0,0.00025753,3]
[385375668,1757797858836,-480.0,0.00025753,3]
[385375669,1757797858845,-1208.29,0.00025753,3]
[385375670,1757797858854,-580.83,0.00025753,3]
[385375671,1757797858864,-480.0,0.00025753,3]
[385375672,1757797858873,-663.09,0.00025753,3]
[385375673,1757797858883,-488.61,0.00025753,3]
[385375674,1757797858892,-1298.16,0.00025753,3]
[385375675,1757797858901,-480.0,0.00025753,3]
[385375676,1757797858910,-480.0,0.00025753,3]
[385375677,1757797858919,-546.16,0.00025753,3]
[385375678,1757797858929,-480.0,0.00025753,3]
[385375679,1757797858938,-3822.56,0.00025753,3]
[385375680,1757797858947,-480.0,0.00025753,3]
[385375681,1757797858956,-480.0,0.00025753,3]
[385375682,1757797858965,-480.0,0.00025753,3]
[385375683,1757797858975,-480.0,0.00025753,3]
[385375684,1757797858984,-544.9,0.00025753,3]
[385375685,1757797858994,-4731.51,0.00025753,3]
[385375686,1757797859003,-480.0,0.00025753,3]
[385375687,1757797859013,-528.34,0.00025753,3]
[385375688,1757797859022,-769.92,0.00025753,3]
[385375689,1757797859031,-480.0,0.00025753,3]
[385375690,1757797859040,-5408.73,0.00025753,3]
[385375691,1757797859049,-820.76,0.00025753,3]
[385375692,1757797859058,-1069.75,0.00025753,3]
[385375693,1757797859068,-480.0,0.00025753,3]
[385375694,1757797859078,-539.7,0.00025753,3]
[385375695,1757797859088,-1530.54,0.00025753,3]
[385375696,1757797859097,-809.45,0.00025753,3]
[385375697,1757797859106,-2741.13,0.00025753,3]
[385375698,1757797859115,-480.0,0.00025753,3]
[385375699,1757797859128,-1053.88,0.00025753,3]
[385375700,1757797859139,-705.89,0.00025753,3]
[385375701,1757797859149,-480.0,0.00025753,3]
[385375702,1757797859158,-480.0,0.00025753,3]
[385375703,1757797859173,-480.0,0.00025753,3]
[385375704,1757797859189,-487.91,0.00025753,3]
[385375705,1757797859199,-1792.23,0.00025753,3]
[385375706,1757797859209,-1076.17,0.00025753,3]
[385375707,1757797859219,-702.49,0.00025753,3]
[385375708,1757797859229,-677.57,0.00025753,3]
[385375709,1757797859238,-480.0,0.00025753,3]
[385375710,1757797859248,-716.49,0.00025753,3]
[385375711,1757797859259,-1758.73,0.00025753,3]
[385375712,1757797859268,-715.05,0.00025753,3]
[385375713,1757797859279,-480.0,0.00025753,3]
[385375714,1757797859289,-1041.19,0.00025753,3]
[385375715,1757797859304,-3039.23,0.00025753,3]
[385375716,1757797859313,-18172.37,0.00025753,3]
[385375717,1757797859323,-480.0,0.00025753,3]
[385375718,1757797859335,-1407.05,0.00025753,3]
[385375719,1757797859345,-480.0,0.00025753,3]
[385375720,1757797859354,-480.0,0.00025753,3]
[385375721,1757797859363,-770.53,0.00025753,3]
[385375722,1757797859374,-480.0,0.00025753,3]
[385375723,1757797859383,-480.0,0.00025753,3]
[385375724,1757797859392,-3266.41,0.00025753,3]
[385375725,1757797859401,-570.8,0.00025753,3]
[385375726,1757797859412,-1148.94,0.00025753,3]
[385375727,1757797859421,-480.0,0.00025753,3]
[385375728,1757797859432,-628.62,0.00025753,3]
[385375729,1757797859442,-2158.32,0.00025753,3]
[385375730,1757797859451,-1077.2,0.00025753,3]
[385375731,1757797859461,-620.58,0.00025753,3]
[385375732,1757797859471,-1551.49,0.00025753,3]
[385375733,1757797859480,-612.64,0.00025753,3]
[385375734,1757797859490,-1090.5,0.00025753,3]
[385375735,1757797859500,-480.0,0.00025753,3]
[385375736,1757797859509,-5972.34,0.00025753,3]
[385375737,1757797859518,-480.0,0.00025753,3]
[385375738,1757797859528,-3138.73,0.00025753,3]
[385375739,1757797859538,-1242.41,0.00025753,3]
[385375740,1757797859549,-1388.15,0.00025753,3]
[385375741,1757797859558,-2041.77,0.00025753,3]
[385375742,1757797859568,-1724.09,0.00025753,3]
[385375743,1757797859579,-587.3,0.00025753,3]
[385375744,1757797859588,-480.0,0.00025753,3]
[385375745,1757797859597,-480.0,0.00025753,3]
[385375746,1757797859607,-1040.4,0.00025753,3]
[385375747,1757797859616,-979.92,0.00025753,3]
[385375748,1757797859625,-4373.74,0.00025753,3]
[385375749,1757797859634,-480.0,0.00025753,3]
[385375750,1757797859645,-4160.03,0.00025753,3]
[385375751,1757797859655,-762.75,0.00025753,3]
[385375752,1757797859665,-36127.25,0.00025753,3]
[385375753,1757797859674,-480.0,0.00025753,3]
[385375754,1757797859683,-480.0,0.00025753,3]
[385375755,1757797859692,-480.0,0.00025753,3]
[385375756,1757797859703,-480.0,0.00025753,3]
[385375757,1757797859713,-480.0,0.00025753,3]
[385375758,1757797859722,-480.0,0.00025753,3]
[385375759,1757797859732,-1910.85,0.00025753,3]
[385375760,1757797859741,-1401.88,0.00025753,3]
[385375761,1757797859750,-692.19,0.00025753,3]
[385375762,1757797859759,-1936.75,0.00025753,3]
[385375763,1757797859768,-1316.22,0.00025753,3]
[385375764,1757797859778,-1934.0,0.00025753,3]
[385375765,1757797859796,-480.0,0.00025753,3]
[385375766,1757797859810,-722.51,0.00025753,3]
[385375767,1757797859821,-480.0,0.00025753,3]
[385375768,1757797859831,-3777.73,0.00025753,3]
[385375769,1757797859840,-8117.93,0.00025753,3]
[385375770,1757797859851,-3222.89,0.00025753,3]
[385375771,1757797859860,-6888.82,0.00025753,3]
[385375772,1757797859870,-480.0,0.00025753,3]
[385375773,1757797859879,-480.0,0.00025753,3]
[385375774,1757797859889,-4598.85,0.00025753,3]
[385375775,1757797859899,-8378.03,0.00025753,3]
[385375776,1757797859908,-681.39,0.00025753,3]
[385375777,1757797859918,-552.83,0.00025753,3]
[385375778,1757797859927,-1901.54,0.00025753,3]
[385375779,1757797859936,-730.27,0.00025753,3]
[385375780,1757797859946,-947.38,0.00025753,3]
[385375781,1757797859955,-624.9,0.00025753,3]
[385375782,1757797859964,-480.0,0.00025753,3]
[385375783,1757797859974,-480.0,0.00025753,3]
[385375784,1757797859984,-480.0,0.00025753,3]
[385375785,1757797859994,-522.77,0.00025753,3]
[385375786,1757797860003,-300.21609883,0.00025753,3]
[385375787,1757797860155,-630.5,0.00025753,3]
[385375788,1757797860165,-480.0,0.00025753,3]
[385375789,1757797860175,-654.54,0.00025753,3]
[385375790,1757797860184,-480.0,0.00025753,3]
[385375791,1757797860193,-480.0,0.00025753,3]
[385375792,1757797860203,-592.21,0.00025753,3]
[385375793,1757797860212,-480.0,0.00025753,3]
[385375794,1757797860222,-569.42,0.00025753,3]
[385375795,1757797860232,-535.65,0.00025753,3]
[385375796,1757797860242,-1562.3,0.00025753,3]
[385375797,1757797860252,-533.9,0.00025753,3]
[385375798,1757797860261,-614.69456251,0.00025768,2]
[385375799,1757797860271,-1500.0,0.00025768,2]
[385375800,1757797860281,-1500.0,0.00025768,2]
[385375801,1757797860292,-1500.0,0.00025768,2]
[385375802,1757797860304,-615.6155732,0.00025768,2]
[385375803,1757797860314,-1500.0,0.00025768,2]
[385375804,1757797860324,-1500.0,0.00025768,2]
[385375805,1757797860334,-443.13928742,0.00025768,2]
[385375806,1757797860343,-290.77588044,0.00025768,2]
[385375807,1757797860353,-1500.0,0.00025768,2]
[385375808,1757797860364,-1500.0,0.00025768,2]
[385375809,1757797860374,-360.0,0.00025786,2]
[385375810,1757797860384,-250.0,0.000258,7]
[385375811,1757797860394,-2222.42,0.000258,7]
[385375812,1757797860404,-31326.88,0.000258,7]
[385375813,1757797860413,-233.1568031,0.000258,7]
[385375814,1757797860422,-250.0,0.00025821,2]
[385375815,1757797860431,-152.250623,0.00025863,5]
[385375816,1757797860440,-661.6228381,0.00025863,2]
[385375817,1757797860450,-308.0,0.00025872,2]
[385375818,1757797860459,-152.250623,0.00025917,7]
[385375819,1757797860468,-2900.0,0.00025925,2]
[385375820,1757797860477,-168.0,0.00025959,2]
[385375821,1757797860486,-500.462,0.00025998,2]
[385375822,1757797860495,-152.250623,0.00025998,10]
[385375823,1757797860505,-152.250623,0.00026015,2]
[385375824,1757797860514,-2453.30148554,0.00026027,2]
[385375825,1757797860523,-500.0,0.00026027,3]
[385375826,1757797860532,-557.94652694,0.00026027,3]
[385375827,1757797860541,-500.0,0.00026027,2]
[385375828,1757797860550,-500.0,0.00026027,3]
[385375829,1757797860560,-776.0,0.00026027,3]
[385375830,1757797860570,-500.0,0.00026027,3]
[385375831,1757797860579,-511.25588291,0.00026027,3]
[385375832,1757797860588,-600.22,0.00026027,3]
[385375833,1757797860597,-480.0,0.00026027,3]
[385375834,1757797860606,-480.0,0.00026027,3]
[385375835,1757797860615,-643.07,0.00026027,3]
[385375836,1757797860626,-480.0,0.00026027,3]
[385375837,1757797860635,-588.93,0.00026027,3]
[385375838,1757797860645,-200.0,0.00026027,3]
[385375839,1757797860654,-936.38,0.00026027,3]
[385375840,1757797860663,-739.4,0.00026027,3]
[385375841,1757797860672,-548.32520968,0.00026027,3]
[385375842,1757797860682,-480.0,0.00026027,3]
[385375843,1757797860691,-346.32254773,0.00026027,3]
[385375844,1757797860700,-480.0,0.00026027,3]
[385375845,1757797860709,-494.87206775,0.00026027,3]
[385375846,1757797860719,-480.0,0.00026027,3]
[385375847,1757797860728,-480.0,0.00026027,3]
[385375848,1757797860737,-494.7,0.00026027,3]